bitfinex-derivatives/quotes_SOLF0:USTF0_20241217
["timestamp","ask_amount","ask_price","bid_price","bid_amount"]
[1734436552084,2.2517,222.06,222.02,2.252]
[1734436552380,10.73279353,222.11,222.02,2.28]
[1734436552982,2.2515,222.09,222.02,2.28]
[1734436553284,10.73279353,222.11,222.02,2.28]
[1734436553682,2.2521,222.03,221.99,2.28]
[1734436553883,10.73279353,222.11,221.99,2.28]
[1734436555088,2.2521,222.03,221.99,2.2524]
[1734436559186,2.2519,222.04,222.0,2.2523]
[1734436560190,2.2518,222.05,222.01,2.2522]
[1734436560384,2.2518,222.05,221.98,2.28]
[1734436560589,10.73279353,222.11,221.98,13.01279353]
[1734436561393,2.2518,222.06,222.02,2.2521]
[1734436561588,10.73279353,222.11,221.98,2.28]
[1734436561984,2.2523,222.01,221.98,2.28]
[1734436562290,10.73279353,222.11,221.98,2.28]
[1734436562487,2.2521,222.02,221.98,4.5324]
[1734436562790,2.2521,222.02,221.98,2.28]
[1734436564191,2.2521,222.02,221.99,6.85863685]
[1734436564387,2.2521,222.02,221.99,9.11103685]
[1734436567598,2.2521,222.02,221.99,6.85863685]
[1734436569396,2.2521,222.02,221.99,9.11093685]
[1734436570194,2.252,222.03,221.99,9.11093685]
[1734436570389,6.85863685,222.09,222.01,6.85863685]
[1734436570895,6.85863685,222.09,221.84,51.50400515]
[1734436570896,6.85863685,222.03,221.84,51.50400515]
[1734436571100,4.5032,222.08,221.9,6.85863685]
[1734436571101,6.85863685,221.99,221.9,6.85863685]
[1734436571992,2.2528,221.95,221.91,2.2531]
[1734436572401,2.2525,221.99,221.95,2.2527]
[1734436573197,2.2525,221.98,221.95,2.2527]
[1734436574501,2.2524,222.0,221.95,2.2527]
[1734436574693,2.2524,222.0,221.96,2.2527]
[1734436576104,2.2524,221.99,221.96,2.2527]
[1734436576397,4.6631,222.02,221.94,9.07863685]
[1734436576697,9.07863685,222.07,221.99,2.2524]
[1734436577093,2.2521,222.03,221.99,2.2524]
[1734436577299,2.2521,222.03,221.95,6.85863685]
[1734436577300,6.85863685,222.03,221.95,6.85863685]
[1734436577898,2.2523,222.01,221.95,9.11133685]
[1734436578201,6.85863685,222.03,221.95,9.11133685]
[1734436579005,2.2524,222.0,221.96,2.2526]
[1734436579204,6.85863685,222.03,221.96,2.2526]
[1734436580102,6.85863685,222.03,221.95,6.85863685]
[1734436580303,6.85863685,221.99,221.92,2.22]
[1734436580504,2.2528,221.96,221.92,2.22]
[1734436581102,2.2528,221.96,221.93,2.253]
[1734436581303,2.2528,221.96,221.93,9.11163685]
[1734436582205,2.2528,221.96,221.93,6.85863685]
[1734436583607,6.85863685,222.03,221.89,5.44840417]
[1734436583801,6.85863685,221.99,221.92,6.85863685]
[1734436584306,6.85863685,221.95,221.89,2.22]
[1734436584799,2.2533,221.91,221.89,2.22]
[1734436585206,6.85863685,221.95,221.88,6.85863685]
[1734436585399,2.2533,221.91,221.88,6.85863685]
[1734436586502,2.2534,221.89,221.86,9.11233685]
[1734436586799,2.2534,221.89,221.78,3.0338]
[1734436586800,6.85863685,221.9,221.78,3.0338]
[1734436587004,6.85863685,221.9,221.82,6.85863685]
[1734436587402,2.22,221.94,221.84,6.85863685]
[1734436587706,6.85863685,221.92,221.85,7.03291673]
[1734436588008,2.2534,221.9,221.85,4.4738]
[1734436588305,2.22,221.94,221.86,4.81247351]
[1734436588503,2.22,221.94,221.85,4.4738]
[1734436588705,2.22,221.94,221.86,4.81242689]
[1734436588901,3.0287,221.98,221.85,12.95074102]
[1734436589097,10.73074102,221.94,221.84,2.22]
[1734436589409,2.2538,221.86,221.84,2.22]
[1734436590002,10.73074102,221.94,221.84,2.22]
[1734436590205,10.73074102,221.91,221.76,10.73074102]
[1734436590508,5.1484,221.9,221.77,8.15728061]
[1734436590709,2.2541,221.83,221.78,7.06417266]
[1734436590901,2.2541,221.83,221.79,4.80967266]
[1734436591102,2.2541,221.83,221.8,4.80967266]
[1734436591299,2.2541,221.83,221.77,2.22]
[1734436591501,2.2542,221.82,221.78,4.80674527]
[1734436591700,2.2542,221.82,221.79,4.80674527]
[1734436591900,2.2542,221.82,221.77,5.42817344]
[1734436592105,10.73074102,221.88,221.76,4.4547]
[1734436593206,2.2544,221.8,221.76,4.4547]
[1734436593512,2.2544,221.8,221.76,2.2547]
[1734436595299,2.2,221.85,221.75,7.57338881]
[1734436595504,2.2545,221.79,221.75,4.4549]
[1734436596201,2.2544,221.8,221.76,2.2548]
[1734436596599,10.73074102,221.86,221.75,2.2]
[1734436596800,2.2542,221.82,221.75,2.2]
[1734436597206,2.2,221.87,221.75,2.2]
[1734436597405,1.4516,221.89,221.79,10.73074102]
[1734436597604,256.61497721,221.98,221.82,10.73074102]
[1734436597605,12.93074102,221.96,221.82,10.73074102]
[1734436597807,2.2,221.96,221.85,10.73074102]
[1734436598005,4.6128,221.97,221.9,2.2533]
[1734436599015,2.253,221.94,221.9,2.2533]
[1734436601313,2.253,221.94,221.89,2.2534]
[1734436602120,2.253,221.93,221.89,2.2534]
[1734436605220,12.93074102,221.95,221.61,51.54]
[1734436605419,12.93074102,221.95,221.8,10.73074102]
[1734436605616,12.93074102,221.95,221.81,2.2]
[1734436605819,2.2536,221.88,221.84,2.2539]
[1734436606121,2.2536,221.88,221.82,5.37078448]
[1734436606122,12.93074102,221.95,221.82,5.37078448]
[1734436606721,2.2535,221.89,221.85,2.2538]
[1734436607123,2.2,221.94,221.83,10.73074102]
[1734436607522,4.6128,221.97,221.86,10.73074102]
[1734436607727,4.6128,221.97,221.87,2.2]
[1734436608029,4.6128,221.97,221.89,6.86482638]
[1734436608030,11.47762638,221.97,221.89,6.86482638]
[1734436609223,11.47762638,221.97,221.91,6.86482638]
[1734436610328,298.371276,222.06,221.91,6.86482638]
[1734436610329,29.35107394,222.05,221.91,6.86482638]
[1734436610535,6.86482638,222.02,221.95,6.86482638]
[1734436611331,6.86482638,222.0,221.94,2.2]
[1734436611533,2.2525,221.98,221.94,2.2]
[1734436611735,6.86482638,221.98,221.94,2.2]
[1734436612831,2.2526,221.97,221.94,2.2]
[1734436613030,6.86482638,221.98,221.94,2.2]
[1734436613326,6.86482638,221.96,221.89,2.2]
[1734436613630,2.2531,221.93,221.89,2.2]
[1734436614335,2.2531,221.93,221.9,2.2533]
[1734436615437,2.2531,221.93,221.89,4.4534]
[1734436617734,6.86482638,221.96,221.89,2.2]
[1734436617935,2.2529,221.94,221.9,9.11812638]
[1734436619342,6.86482638,221.96,221.89,2.2]
[1734436619942,2.2529,221.94,221.89,2.2]
[1734436620138,2.2,221.96,221.79,4.5089]
[1734436620339,6.86482638,221.83,221.71,4.80789335]
[1734436620637,8.9801,221.93,221.76,6.86482638]
[1734436620638,6.86482638,221.84,221.76,6.86482638]
[1734436620843,6.86482638,221.86,221.78,6.86482638]
[1734436621145,6.86482638,221.86,221.79,2.2]
[1734436621340,2.2541,221.83,221.79,2.2]
[1734436621540,246.831276,221.92,221.79,2.2]
[1734436621741,6.86482638,221.86,221.79,2.2]
[1734436621948,2.254,221.84,221.79,2.2]
[1734436622649,9.11862638,221.86,221.79,2.2]
[1734436623042,9.11862638,221.86,221.79,4.4544]
[1734436623437,2.2539,221.85,221.79,4.4544]
[1734436624944,2.2537,221.87,221.82,2.2541]
[1734436625140,10.73670567,221.9,221.82,2.2541]
[1734436625345,10.73670567,221.9,221.78,10.73670567]
[1734436625543,10.73670567,221.9,221.8,2.2543]
[1734436625544,2.2538,221.86,221.8,2.2543]
[1734436625749,2.2538,221.86,221.81,4.8097972]
[1734436625948,2.2538,221.86,221.8,2.2543]
[1734436626244,2.2538,221.86,221.81,4.80984676]
[1734436626450,2.2538,221.86,221.8,2.2543]
[1734436626651,2.2538,221.86,221.81,4.81034199]
[1734436626947,10.73670567,221.9,221.82,2.28]
[1734436627946,10.73670567,221.9,221.83,2.28]
[1734436628146,2.2535,221.89,221.79,5.52993816]
[1734436628343,10.73670567,221.9,221.8,2.28]
[1734436630545,2.254,221.84,221.8,2.28]
[1734436632852,2.254,221.83,221.8,2.28]
[1734436635946,2.254,221.83,221.81,2.3]
[1734436636653,2.254,221.83,221.82,2.3]
[1734436638551,10.73670567,221.9,221.82,2.3]
[1734436638759,5.50341438,221.92,221.82,2.3]
[1734436638954,16.24012005,221.92,221.82,2.3]
[1734436639153,5.50341438,221.92,221.82,2.3]
[1734436639359,2.2538,221.86,221.82,2.3]
[1734436640256,2.2539,221.85,221.82,2.3]
[1734436640953,2.2539,221.85,221.83,2.3]
[1734436641163,2.2539,221.85,221.84,2.3]
[1734436641554,2.254,221.84,221.8,2.2543]
[1734436641750,2.254,221.84,221.81,2.3]
[1734436641961,10.73670567,221.89,221.79,5.40381487]
[1734436642254,10.73670567,221.89,221.75,10.73670567]
[1734436642255,10.73670567,221.89,221.68,0.873]
[1734436642450,10.73670567,221.86,221.72,10.73670567]
[1734436642652,10.73670567,221.86,221.73,4.81331836]
[1734436642851,2.2543,221.81,221.76,2.2547]
[1734436643060,2.2543,221.81,221.74,2.3]
[1734436643255,2.2543,221.81,221.75,4.81346181]
[1734436643463,2.2543,221.81,221.76,7.11346181]
[1734436643663,2.2543,221.81,221.76,2.3]
[1734436644357,2.2543,221.81,221.68,0.873]
[1734436644358,6.87354511,221.81,221.68,0.873]
[1734436644654,10.00981438,221.92,221.69,4.81247553]
[1734436644655,6.87354511,221.79,221.69,4.81247553]
[1734436644860,6.87354511,221.79,221.73,2.255]
[1734436645061,2.2547,221.77,221.74,2.3]
[1734436645367,2.2547,221.77,221.75,2.3]
[1734436646463,2.2547,221.77,221.72,6.87354511]
[1734436646464,2.2547,221.77,221.76,2.3]
[1734436647164,2.2548,221.76,221.72,2.2551]
[1734436647464,2.2548,221.76,221.73,2.3]
[1734436647660,2.2548,221.76,221.73,7.10960266]
[1734436647864,2.2548,221.76,221.73,2.3]
[1734436648361,2.2548,221.76,221.72,2.2551]
[1734436648568,2.2548,221.76,221.74,2.3]
[1734436649366,6.87354511,221.75,221.56,4.5135]
[1734436649668,6.87354511,221.75,221.63,12.28556459]
[1734436649669,6.87354511,221.71,221.63,12.28556459]
[1734436649869,2.2556,221.68,221.64,9.36458586]
[1734436650171,2.2556,221.68,221.64,4.5559]
[1734436650466,6.87354511,221.69,221.54,2.4377]
[1734436650665,6.87354511,221.67,221.55,2.3]
[1734436650861,1.5963,221.74,221.62,6.87354511]
[1734436651069,6.87354511,221.68,221.63,2.22]
[1734436652060,2.2558,221.66,221.63,2.22]
[1734436652362,6.87354511,221.68,221.63,2.22]
[1734436653368,9.12924511,221.68,221.63,4.4761]
[1734436654068,2.2557,221.67,221.63,4.4761]
[1734436655867,6.87354511,221.68,221.63,2.22]
[1734436656268,1.5963,221.74,221.66,6.87354511]
[1734436656672,8.38384511,221.75,221.68,6.87354511]
[1734436656866,8.38384511,221.75,221.7,2.2553]
[1734436657064,8.38384511,221.75,221.69,2.22]
[1734436657477,2.255,221.74,221.7,2.2553]
[1734436657677,6.87354511,221.71,221.6,5.41093664]
[1734436657877,6.87354511,221.71,221.63,6.87354511]
[1734436659577,2.2554,221.7,221.65,6.87354511]
[1734436659774,6.87354511,221.73,221.66,2.22]
[1734436659975,2.2553,221.71,221.67,2.2557]
[1734436661179,2.2553,221.71,221.67,9.12924511]
[1734436661780,8.38384511,221.75,221.69,6.87354511]
[1734436662581,8.42754511,221.78,221.71,6.87354511]
[1734436662773,8.42754511,221.78,221.5,252.11]
[1734436662774,6.87354511,221.72,221.47,14.82113459]
[1734436663084,2.2567,221.57,221.51,9.13074511]
[1734436663278,6.87354511,221.59,221.52,10.10903621]
[1734436663479,6.87354511,221.59,221.53,7.01598057]
[1734436663784,6.87354511,221.59,221.54,4.79598057]
[1734436664082,12.29233018,221.64,221.55,2.22]
[1734436664483,2.2562,221.62,221.55,2.22]
[1734436664782,12.29233018,221.64,221.55,2.22]
[1734436665485,10.76143018,221.69,221.56,15.55497693]
[1734436665686,1.4878,221.7,221.61,2.2563]
[1734436665984,1.4878,221.7,221.62,2.22]
[1734436666283,1.4878,221.7,221.63,2.256]
[1734436666987,2.2555,221.69,221.63,2.256]
[1734436667282,1.4878,221.7,221.62,2.22]
[1734436667486,3.1428,221.71,221.65,2.2558]
[1734436667679,2.2554,221.7,221.65,2.2558]
[1734436668080,3.1428,221.71,221.64,2.22]
[1734436668485,3.1428,221.71,221.63,2.22]
[1734436669081,2.2557,221.67,221.63,2.22]
[1734436669487,10.76143018,221.69,221.61,2.22]
[1734436669786,2.256,221.64,221.61,2.22]
[1734436670084,2.256,221.64,221.6,2.22]
[1734436670280,1.5752,221.68,221.6,2.22]
[1734436670879,2.2562,221.62,221.59,2.22]
[1734436671483,1.5752,221.68,221.59,2.22]
[1734436671788,1.5752,221.68,221.62,2.2561]
[1734436672190,1.5752,221.68,221.59,12.98143018]
[1734436672385,1.5752,221.68,221.6,2.2563]
[1734436672788,1.5752,221.68,221.37,4.5175]
[1734436672789,10.76143018,221.64,221.37,4.5175]
[1734436673091,10.76143018,221.58,221.38,7.01176597]
[1734436673284,1.4936,221.57,221.43,10.76143018]
[1734436673486,2.9879,221.57,221.48,2.2576]
[1734436673691,2.9879,221.57,221.49,4.7902422]
[1734436673884,2.2571,221.54,221.48,2.2576]
[1734436674192,2.9879,221.57,221.49,9.2677402]
[1734436674389,2.9879,221.57,221.5,2.22]
[1734436674588,2.2571,221.53,221.5,2.22]
[1734436674988,2.9879,221.57,221.5,2.22]
[1734436675186,2.257,221.54,221.5,2.22]
[1734436675584,2.9879,221.57,221.5,2.22]
[1734436676086,12.98143018,221.67,221.53,10.76143018]
[1734436676390,2.2564,221.6,221.53,10.76143018]
[1734436676588,1.5527,221.64,221.53,10.76143018]
[1734436676984,1.5527,221.64,221.56,10.76143018]
[1734436677189,1.5527,221.64,221.58,2.2566]
[1734436677891,1.5527,221.64,221.57,2.22]
[1734436678292,2.2559,221.65,221.57,2.22]
[1734436678488,3.0575,221.68,221.57,2.22]
[1734436678996,2.2559,221.65,221.58,2.2566]
[1734436679295,3.0575,221.68,221.57,2.22]
[1734436680489,2.2559,221.65,221.6,2.2563]
[1734436680688,1.5096,221.68,221.58,10.76143018]
[1734436680893,1.5096,221.68,221.6,10.76143018]
[1734436681797,2.2555,221.69,221.65,2.2558]
[1734436681988,2.2555,221.69,221.58,2.9684]
[1734436682193,10.76143018,221.73,221.59,17.85133466]
[1734436682497,3.1185,221.75,221.6,4.79138945]
[1734436682691,3.1185,221.75,221.59,13.06143018]
[1734436682902,3.1185,221.75,221.65,10.76143018]
[1734436683097,3.1185,221.75,221.66,2.3]
[1734436683802,3.8385,221.75,221.67,4.79198798]
[1734436683998,1.5524,221.76,221.68,10.76143018]
[1734436684802,1.5249,221.8,221.71,10.76143018]
[1734436685097,1.5249,221.8,221.72,2.3]
[1734436685999,1.5249,221.8,221.73,4.79531298]
[1734436686205,1.4995,221.86,221.74,10.76143018]
[1734436686399,1.4995,221.86,221.72,2.3]
[1734436686400,3.7532,221.86,221.79,2.2544]
[1734436686597,1.4995,221.86,221.8,2.3]
[1734436687002,3.7533,221.86,221.81,2.2542]
[1734436687600,1.4995,221.86,221.77,10.76143018]
[1734436687800,1.4995,221.86,221.74,10.76143018]
[1734436688104,1.4995,221.86,221.75,7.09631066]
[1734436688297,1.4995,221.86,221.75,2.3]
[1734436688504,1.4995,221.86,221.76,4.79598457]
[1734436688703,1.4995,221.86,221.75,2.3]
[1734436689009,1.4995,221.86,221.76,4.79603138]
[1734436689200,1.4995,221.86,221.75,7.81226993]
[1734436689407,2.2541,221.83,221.78,2.2545]
[1734436689598,1.4995,221.86,221.75,7.81226993]
[1734436690407,12.26093018,221.86,221.75,2.2548]
[1734436690607,12.26093018,221.86,221.74,10.76143018]
[1734436690608,12.26093018,221.86,221.71,10.76143018]
[1734436690804,10.76143018,221.83,221.72,4.79519936]
[1734436691107,10.76143018,221.8,221.66,2.3]
[1734436691303,1.5409,221.79,221.66,2.3]
[1734436691504,1.5409,221.79,221.67,4.79688218]
[1734436691699,1.5409,221.79,221.66,2.3]
[1734436691902,1.5409,221.79,221.68,10.76143018]
[1734436692604,12.24903018,221.82,221.68,10.76143018]
[1734436692902,1.4876,221.82,221.71,10.76143018]
[1734436693104,1.4876,221.82,221.72,2.3]
[1734436693408,2.2545,221.79,221.73,2.2551]
[1734436693609,2.2545,221.79,221.74,2.3]
[1734436693812,1.4876,221.82,221.69,2.3]
[1734436694109,17.1924006,221.75,221.45,14.82113459]
[1734436694309,5.4313,221.74,221.52,17.1924006]
[1734436694508,17.1924006,221.71,221.53,7.09872765]
[1734436694805,3.1313,221.74,221.54,4.79872765]
[1734436695009,2.3,221.73,221.6,17.1924006]
[1734436695205,2.3,221.73,221.61,7.09872765]
[1734436695405,2.3,221.73,221.61,2.3]
[1734436696611,2.2556,221.69,221.63,2.256]
[1734436696808,2.2556,221.69,221.63,4.556]
[1734436699110,2.2556,221.68,221.63,2.256]
[1734436699312,2.2556,221.68,221.63,4.556]
[1734436699608,2.3,221.73,221.63,2.3]
[1734436699810,2.3,221.73,221.56,5.34879667]
[1734436699811,1.5552,221.72,221.56,22.54119727]
[1734436700008,1.5552,221.72,221.57,7.09927377]
[1734436700208,1.5552,221.72,221.58,4.79927377]
[1734436700411,1.5552,221.72,221.59,4.79927377]
[1734436700612,1.5552,221.72,221.57,2.3]
[1734436700910,1.5552,221.72,221.58,4.79929077]
[1734436701107,1.5552,221.72,221.57,2.3]
[1734436701312,1.5552,221.72,221.58,7.09877362]
[1734436701612,2.256,221.65,221.59,2.2565]
[1734436701811,2.3,221.67,221.43,4.5162]
[1734436702107,2.2566,221.58,221.52,5.34182014]
[1734436702311,2.3,221.64,221.52,7.64182014]
[1734436702810,2.3,221.64,221.52,9.89902014]
[1734436703009,2.3,221.64,221.52,7.64182014]
[1734436704014,2.2567,221.57,221.52,2.3]
[1734436704310,2.3,221.64,221.49,2.3]
[1734436704516,2.2569,221.56,221.5,2.2573]
[1734436704904,2.2569,221.56,221.51,2.2573]
[1734436706211,2.2567,221.58,221.53,2.257]
[1734436706416,2.3,221.64,221.49,7.82120308]
[1734436706709,2.2561,221.63,221.55,2.2568]
[1734436706906,2.9361,221.65,221.56,2.3]
[1734436707510,5.1921,221.65,221.59,2.2564]
[1734436707710,2.3,221.7,221.56,19.4924006]
[1734436707911,2.3,221.7,221.57,4.79551722]
[1734436708119,2.2558,221.66,221.61,2.2562]
[1734436708415,2.3,221.7,221.61,2.3]
[1734436708813,2.2557,221.67,221.62,2.2561]
[1734436709315,2.2557,221.67,221.61,2.3]
[1734436709316,2.2557,221.68,221.63,2.256]
[1734436709510,2.2557,221.68,221.61,2.3]
[1734436709511,2.9347,221.71,221.61,2.3]
[1734436712410,2.2555,221.69,221.61,2.3]
[1734436712612,2.9347,221.71,221.61,2.3]
[1734436713015,17.1924006,221.8,221.61,2.3]
[1734436713219,3.7955,221.79,221.62,4.79620621]
[1734436713418,3.7955,221.79,221.61,2.3]
[1734436713623,3.7955,221.79,221.62,4.79612081]
[1734436713823,3.7955,221.79,221.64,17.1924006]
[1734436713824,5.46887554,221.78,221.64,17.1924006]
[1734436714020,5.46887554,221.78,221.63,4.79612081]
[1734436714021,5.46887554,221.78,221.67,10.74549081]
[1734436714219,5.46887554,221.78,221.68,2.34]
[1734436714723,1.4555,221.79,221.68,2.34]
[1734436715118,2.2547,221.77,221.72,2.2551]
[1734436715313,2.2547,221.77,221.68,2.34]
[1734436715720,10.74549081,221.81,221.68,2.34]
[1734436715921,2.2545,221.79,221.68,2.34]
[1734436716117,10.74549081,221.81,221.68,2.34]
[1734436716825,2.2546,221.78,221.68,2.34]
[1734436717418,2.2546,221.78,221.74,2.2549]
[1734436717921,2.2545,221.79,221.74,2.2549]
[1734436718322,2.2545,221.79,221.54,4.5139]
[1734436718323,10.74549081,221.77,221.54,4.5139]
[1734436718518,2.2551,221.73,221.67,2.2556]
[1734436718725,10.74549081,221.77,221.63,13.08549081]
[1734436719024,2.255,221.74,221.69,2.2554]
[1734436720424,2.255,221.74,221.7,2.2554]
[1734436723934,2.34,221.8,221.72,2.2551]
[1734436724528,2.2547,221.77,221.72,2.2551]
[1734436725127,2.2548,221.76,221.72,2.2551]
[1734436725930,3.1472,221.82,221.73,2.255]
[1734436725931,2.2547,221.77,221.73,2.255]
[1734436726830,1.5775,221.82,221.75,10.74549081]
[1734436727023,1.5555,221.87,221.75,13.08549081]
[1734436728026,2.34,221.85,221.75,2.34]
[1734436728225,2.2546,221.78,221.75,2.34]
[1734436731529,2.2545,221.79,221.75,4.5948]
[1734436731727,2.34,221.85,221.75,2.34]
[1734436731923,12.34529081,221.86,221.75,2.34]
[1734436732132,2.2543,221.81,221.77,2.2546]
[1734436732329,2.2543,221.81,221.75,2.34]
[1734436732330,12.34529081,221.86,221.75,2.34]
[1734436732727,10.74549081,221.83,221.75,2.34]
[1734436733732,2.2546,221.78,221.75,2.34]
[1734436734131,10.74549081,221.83,221.75,2.34]
[1734436735235,2.2546,221.78,221.75,2.34]
[1734436739626,2.34,221.82,221.68,10.74549081]
[1734436739935,2.34,221.82,221.69,7.14203917]
[1734436740139,2.2545,221.79,221.72,2.2551]
[1734436740432,2.34,221.82,221.72,2.2551]
[1734436740734,2.34,221.82,221.69,2.34]
[1734436740931,2.34,221.82,221.73,2.255]
[1734436741936,2.2547,221.77,221.73,2.255]
[1734436742432,2.34,221.82,221.73,2.255]
[1734436742839,2.34,221.82,221.69,2.34]
[1734436743536,2.34,221.82,221.73,2.255]
[1734436743740,2.34,221.82,221.69,2.34]
[1734436743943,2.2547,221.77,221.7,4.80127159]
[1734436744138,2.2547,221.77,221.69,2.34]
[1734436744336,2.2547,221.77,221.7,4.80116699]
[1734436744540,2.2547,221.77,221.69,2.34]
[1734436744739,2.2547,221.77,221.73,2.255]
[1734436745332,2.2547,221.77,221.69,2.34]
[1734436745540,2.2547,221.77,221.7,4.80140694]
[1734436745737,2.34,221.82,221.69,2.34]
[1734436745938,2.2542,221.82,221.78,2.2545]
[1734436746138,14.68529081,221.86,221.75,2.34]
[1734436746139,1.5998,221.86,221.75,2.34]
[1734436746741,2.2543,221.81,221.75,2.34]
[1734436747237,2.2543,221.81,221.77,2.2546]
[1734436747435,2.2541,221.83,221.75,2.34]
[1734436748141,2.2542,221.82,221.75,2.34]
[1734436748338,2.2542,221.82,221.78,2.2544]
[1734436748939,2.2542,221.82,221.79,2.2544]
[1734436749141,1.5998,221.86,221.75,2.34]
[1734436749336,1.5555,221.87,221.76,10.74549081]
[1734436749542,1.5555,221.87,221.8,2.2542]
[1734436749840,1.5555,221.87,221.76,10.74549081]
[1734436750036,1.5555,221.87,221.79,2.2544]
[1734436750237,2.2541,221.83,221.79,2.2544]
[1734436752439,2.2541,221.83,221.8,2.2543]
[1734436755142,1.5555,221.87,221.76,10.74549081]
[1734436755336,2.254,221.84,221.8,2.2543]
[1734436756040,2.254,221.84,221.81,6.87082308]
[1734436756644,2.2541,221.83,221.81,6.87082308]
[1734436757242,2.254,221.84,221.81,9.12502308]
[1734436757747,1.5555,221.87,221.81,6.87082308]
[1734436757943,2.2541,221.83,221.8,2.2543]
[1734436758139,6.87082308,221.86,221.79,6.87082308]
[1734436758344,2.2544,221.8,221.77,2.2546]
[1734436758546,2.2544,221.8,221.78,11.69308081]
[1734436758841,6.87082308,221.84,221.76,6.87082308]
[1734436759041,2.2547,221.77,221.76,6.87082308]
[1734436759241,2.2547,221.77,221.76,11.69328344]
[1734436759642,2.2547,221.77,221.76,6.87082308]
[1734436760147,2.2547,221.77,221.75,2.2548]
[1734436760344,2.2546,221.78,221.75,2.2548]
[1734436762745,2.34,221.85,221.65,7.05359494]
[1734436762947,2.2547,221.77,221.74,2.2549]
[1734436763355,2.2547,221.77,221.75,4.82345356]
[1734436763556,2.2547,221.77,221.74,2.2549]
[1734436763856,2.2547,221.77,221.75,4.8234349]
[1734436764151,2.2547,221.77,221.76,4.8234349]
[1734436765354,2.34,221.83,221.76,4.8234349]
[1734436765650,2.34,221.83,221.77,4.82494694]
[1734436765850,2.34,221.83,221.74,10.7413909]
[1734436766049,10.7413909,221.86,221.75,7.16494582]
[1734436766251,3.8955,221.87,221.76,4.82494582]
[1734436766452,3.8955,221.87,221.77,4.82494582]
[1734436766649,3.8955,221.87,221.79,2.2543]
[1734436766849,3.8955,221.87,221.8,4.82494582]
[1734436767055,3.8955,221.87,221.79,2.2543]
[1734436767251,3.8955,221.87,221.8,4.82532638]
[1734436767459,2.2541,221.83,221.8,2.2543]
[1734436767656,2.2541,221.83,221.81,4.82603437]
[1734436767958,2.2541,221.83,221.8,2.2543]
[1734436768150,2.2541,221.83,221.81,4.82578082]
[1734436768348,2.2541,221.83,221.8,2.2543]
[1734436768549,2.2541,221.83,221.81,4.82602114]
[1734436768754,3.8955,221.87,221.77,10.7413909]
[1734436768949,2.2541,221.82,221.79,2.2544]
[1734436769150,2.2541,221.82,221.8,4.82610055]
[1734436769350,2.2541,221.82,221.79,2.2544]
[1734436769551,2.2541,221.82,221.8,4.82648553]
[1734436769757,2.254,221.84,221.8,2.2543]
[1734436770059,3.8955,221.87,221.8,2.2543]
[1734436770559,3.8955,221.87,221.81,4.82662925]
[1734436770751,3.8955,221.87,221.8,2.2543]
[1734436770957,3.8955,221.87,221.81,4.82661954]
[1734436771159,3.8955,221.87,221.78,2.2545]
[1734436771361,3.8955,221.87,221.79,4.82682992]
[1734436771561,3.8955,221.87,221.8,4.82694946]
[1734436771757,3.8955,221.87,221.76,2.2547]
[1734436771961,3.8955,221.87,221.77,4.82695297]
[1734436772257,2.2541,221.83,221.75,2.34]
[1734436772556,1.5555,221.87,221.77,10.7413909]
[1734436772762,2.2538,221.86,221.78,4.82715177]
[1734436772959,1.5555,221.87,221.82,2.2541]
[1734436774461,2.2538,221.85,221.82,2.2541]
[1734436775455,2.2541,221.83,221.8,4.5342]
[1734436777865,2.2539,221.85,221.8,2.28]
[1734436779267,2.2539,221.85,221.81,4.8256739]
[1734436779471,2.2539,221.85,221.82,2.2541]